fUSD/lending_fUSD_20250905
["ID","MTS","AMOUNT","RATE_DAILY","PERIOD"]
[383622465,1757045439418,-406.28333584,0.00024798,2]
[383622467,1757045439427,-400.0,0.00024798,2]
[383622469,1757045439436,-500.0,0.00024798,2]
[383622471,1757045439446,-400.0,0.00024798,2]
[383622473,1757045439456,-400.0,0.00024798,2]
[383622475,1757045439466,-162.35141297,0.00024798,2]
[383622477,1757045439476,-400.0,0.00024798,2]
[383622479,1757045439485,-400.0,0.00024798,2]
[383622481,1757045439494,-548.65652918,0.00024798,2]
[383622483,1757045439504,-400.0,0.00024798,2]
[383622485,1757045439513,-400.0,0.00024798,2]
[383622487,1757045439523,-400.0,0.00024798,2]
[383622489,1757045439535,-400.0,0.00024798,2]
[383622491,1757045439548,-400.0,0.00024798,2]
[383622493,1757045439557,-400.0,0.00024798,2]
[383622495,1757045439567,-400.0,0.00024798,2]
[383622497,1757045439578,-400.0,0.00024798,2]
[383622499,1757045439587,-400.0,0.00024798,2]
[383622501,1757045439598,-400.0,0.00024798,2]
[383622503,1757045439607,-400.0,0.00024798,2]
[383622505,1757045439618,-400.0,0.00024798,2]
[383622507,1757045439629,-400.0,0.00024798,2]
[383622509,1757045439639,-405.96052828,0.00024798,2]
[383622511,1757045439649,-400.0,0.00024798,2]
[383622513,1757045439658,-400.0,0.00024798,2]
[383622515,1757045439668,-403.59366867,0.00024798,2]
[383622517,1757045439678,-400.0,0.00024798,2]
[383622519,1757045439688,-404.35868877,0.00024798,2]
[383622521,1757045439697,-400.0,0.00024798,2]
[383622523,1757045439707,-400.0,0.00024798,2]
[383622526,1757045439717,-400.0,0.00024798,2]
[383622527,1757045439728,-400.0,0.00024798,2]
[383622529,1757045439738,-400.0,0.00024798,2]
[383622532,1757045439748,-407.97844667,0.00024798,2]
[383622534,1757045439758,-400.0,0.00024798,2]
[383622536,1757045439768,-400.0,0.00024798,2]
[383622538,1757045439778,-409.45906778,0.00024798,2]
[383622540,1757045439788,-400.0,0.00024798,2]
[383622542,1757045439797,-400.0,0.00024798,2]
[383622544,1757045439807,-400.0,0.00024798,2]
[383622546,1757045439817,-400.0,0.00024798,2]
[383622548,1757045439827,-400.0,0.00024798,2]
[383622550,1757045439836,-400.0,0.00024798,2]
[383622552,1757045439846,-400.0,0.00024798,2]
[383622554,1757045439855,-400.0,0.00024798,2]
[383622556,1757045439865,-406.00815151,0.00024798,2]
[383622558,1757045439874,-406.43699062,0.00024798,2]
[383622560,1757045439884,-400.0,0.00024798,2]
[383622562,1757045439893,-408.6884339,0.00024798,2]
[383622564,1757045439903,-500.0,0.00024798,2]
[383622566,1757045439914,-400.0,0.00024798,2]
[383622568,1757045439924,-400.0,0.00024798,2]
[383622570,1757045439934,-400.0,0.00024798,2]
[383622572,1757045439944,-406.62195345,0.00024798,2]
[383622574,1757045439954,-400.0,0.00024798,2]
[383622596,1757045440128,-400.0,0.00024798,2]
[383622598,1757045440139,-400.0,0.00024798,2]
[383622600,1757045440149,-400.0,0.00024798,2]
[383622602,1757045440158,-400.0,0.00024798,2]
[383622605,1757045440169,-400.0,0.00024798,2]
[383622607,1757045440179,-400.0,0.00024798,2]
[383622609,1757045440189,-400.0,0.00024798,2]
[383622611,1757045440199,-400.0,0.00024798,2]
[383622613,1757045440208,-400.0,0.00024798,2]
[383622616,1757045440219,-400.0,0.00024798,2]
[383622617,1757045440229,-400.0,0.00024798,2]
[383622619,1757045440239,-400.0,0.00024798,2]
[383622621,1757045440249,-400.0,0.00024798,2]
[383622623,1757045440259,-400.0,0.00024798,2]
[383622624,1757045440269,-400.0,0.00024798,2]
[383622626,1757045440278,-400.0,0.00024798,2]
[383622628,1757045440288,-400.0,0.00024798,2]
[383622630,1757045440298,-400.0,0.00024798,2]
[383622632,1757045440308,-400.0,0.00024798,2]
[383622633,1757045440318,-400.0,0.00024798,2]
[383622635,1757045440327,-403.87928,0.00024798,2]
[383622637,1757045440337,-400.0,0.00024798,2]
[383622639,1757045440346,-400.0,0.00024798,2]
[383622640,1757045440356,-400.0,0.00024798,2]
[383622642,1757045440366,-400.0,0.00024798,2]
[383622644,1757045440375,-400.0,0.00024798,2]
[383622646,1757045440386,-400.0,0.00024798,2]
[383622647,1757045440396,-400.0,0.00024798,2]
[383622649,1757045440405,-400.0,0.00024798,2]
[383622651,1757045440415,-403.62832165,0.00024798,2]
[383622653,1757045440424,-406.16676434,0.00024798,2]
[383622654,1757045440434,-400.0,0.00024798,2]
[383622656,1757045440444,-400.0,0.00024798,2]
[383622658,1757045440454,-400.0,0.00024798,2]
[383622660,1757045440464,-404.16033179,0.00024798,2]
[383622662,1757045440474,-400.0,0.00024798,2]
[383622663,1757045440484,-400.0,0.00024798,2]
[383622665,1757045440494,-500.0,0.00024798,2]
[383622667,1757045440504,-406.68965375,0.00024798,2]
[383622669,1757045440513,-400.0,0.00024798,2]
[383622671,1757045440523,-400.0,0.00024798,2]
[383622672,1757045440532,-400.0,0.00024798,2]
[383622674,1757045440542,-400.0,0.00024798,2]
[383622676,1757045440556,-400.0,0.00024798,2]
[383622678,1757045440566,-400.0,0.00024798,2]
[383622680,1757045440575,-400.0,0.00024798,2]
[383622681,1757045440586,-400.0,0.00024798,2]
[383622683,1757045440596,-400.0,0.00024798,2]
[383622685,1757045440605,-410.43440417,0.00024798,2]
[383622687,1757045440615,-400.0,0.00024798,2]
[383622688,1757045440625,-403.22529279,0.00024798,2]
[383622690,1757045440635,-400.0,0.00024798,2]
[383622692,1757045440644,-404.94025664,0.00024798,2]
[383622694,1757045440654,-400.0,0.00024798,2]
[383622696,1757045440664,-400.0,0.00024798,2]
[383622698,1757045440674,-400.0,0.00024798,2]
[383622700,1757045440684,-400.0,0.00024798,2]
[383622702,1757045440695,-406.81435221,0.00024798,2]
[383622704,1757045440704,-400.0,0.00024798,2]
[383622706,1757045440714,-400.0,0.00024798,2]
[383622708,1757045440724,-407.29644151,0.00024798,2]
[383622710,1757045440734,-400.0,0.00024798,2]
[383622711,1757045440743,-400.0,0.00024798,2]
[383622713,1757045440753,-401.38992031,0.00024798,2]
[383622715,1757045440763,-400.0,0.00024798,2]
[383622717,1757045440772,-400.0,0.00024798,2]
[383622719,1757045440782,-400.0,0.00024798,2]
[383622720,1757045440792,-400.0,0.00024798,2]
[383622722,1757045440802,-400.0,0.00024798,2]
[383622724,1757045440812,-400.0,0.00024798,2]
[383622726,1757045440822,-400.0,0.00024798,2]
[383622728,1757045440831,-400.0,0.00024798,2]
[383622730,1757045440842,-400.0,0.00024798,2]
[383622732,1757045440852,-400.0,0.00024798,2]
[383622733,1757045440862,-400.0,0.00024798,2]
[383622735,1757045440873,-400.0,0.00024798,2]
[383622737,1757045440883,-400.0,0.00024798,2]
[383622739,1757045440893,-400.0,0.00024798,2]
[383622741,1757045440903,-400.0,0.00024798,2]
[383622743,1757045440913,-400.0,0.00024798,2]
[383622745,1757045440923,-400.0,0.00024798,2]
[383622746,1757045440932,-400.0,0.00024798,2]
[383622748,1757045440942,-400.0,0.00024798,2]
[383622750,1757045440952,-400.0,0.00024798,2]
[383622752,1757045440961,-400.0,0.00024798,2]
[383622754,1757045440971,-400.0,0.00024798,2]
[383622756,1757045440981,-400.0,0.00024798,2]
[383622757,1757045440991,-400.0,0.00024798,2]
[383622759,1757045441001,-400.0,0.00024798,2]
[383622761,1757045441011,-400.0,0.00024798,2]
[383622763,1757045441020,-400.0,0.00024798,2]
[383622765,1757045441030,-400.0,0.00024798,2]
[383622767,1757045441039,-400.0,0.00024798,2]
[383622769,1757045441048,-400.0,0.00024798,2]
[383622770,1757045441058,-400.0,0.00024798,2]
[383622772,1757045441067,-400.0,0.00024798,2]
[383622774,1757045441077,-408.35896054,0.00024798,2]
[383622776,1757045441086,-434.59,0.00024798,2]
[383622778,1757045441096,-400.0,0.00024798,2]
[383622780,1757045441106,-400.0,0.00024798,2]
[383622781,1757045441115,-400.0,0.00024798,2]
[383622783,1757045441125,-400.0,0.00024798,2]
[383622785,1757045441134,-331.91428959,0.00024798,2]
[383622787,1757045441144,-400.0,0.00024798,2]
[383622789,1757045441154,-408.59602295,0.00024798,2]
[383622791,1757045441164,-400.0,0.00024798,2]
[383622793,1757045441175,-400.0,0.00024798,2]
[383622794,1757045441184,-400.0,0.00024798,2]
[383622796,1757045441194,-400.0,0.00024798,2]
[383622798,1757045441204,-400.0,0.00024798,2]
[383622800,1757045441214,-402.22407545,0.00024798,2]
[383622802,1757045441223,-400.0,0.00024798,2]
[383622804,1757045441233,-400.0,0.00024798,2]
[383622806,1757045441243,-400.0,0.00024798,2]
[383622807,1757045441252,-400.0,0.00024798,2]
[383622809,1757045441262,-400.0,0.00024798,2]
[383622811,1757045441271,-1000.0,0.00024798,2]
[383622813,1757045441281,-500.0,0.00024799,2]
[383622815,1757045441291,-500.0,0.00024799,2]
[383622817,1757045441301,-1500.0,0.000248,9]
[383622819,1757045441311,-43259.66230865,0.000248,3]
[383622851,1757045441779,-500.0,0.0002034,2]
[383622853,1757045441788,-500.0,0.0002034,2]
[383622855,1757045441798,-500.0,0.0002034,2]
[383622857,1757045441808,-500.0,0.0002034,2]
[383622859,1757045441818,-500.0,0.0002034,2]
[383622861,1757045441827,-350.28947134,0.0002034,2]
[383622864,1757045441843,-149.71052866,0.0002034,2]
[383622866,1757045441852,-177.35713342,0.0002034,2]
[383622868,1757045441867,-322.64286658,0.0002034,2]
[383622870,1757045441877,-500.0,0.0002034,2]
[383622872,1757045441888,-500.0,0.0002034,2]
[383622875,1757045441898,-402.68594815,0.00024657,2]
[383622877,1757045441907,-500.0,0.00024657,2]
[383622879,1757045441917,-400.0,0.00024657,2]
[383622881,1757045441927,-400.0,0.00024657,2]
[383622883,1757045441936,-283.75649701,0.00024657,2]
[383622885,1757045441945,-31.11495856,0.00024797,2]
[383622888,1757045441971,-500.0,0.0002034,2]
[383622890,1757045441980,-500.0,0.0002034,2]
[383622892,1757045441989,-468.88504144,0.00024797,2]
[383622894,1757045441999,-400.0,0.00024798,2]
[383622896,1757045442009,-57698.10052335,0.000248,3]
[383622898,1757045442018,-1832.24619749,0.000248,3]
[383622900,1757045442028,-514.736181,0.000248,3]
[383622902,1757045442038,-5334.5236024,0.00024863,2]
[383622904,1757045442048,-25239.4407081,0.00024881,3]
[383622906,1757045442058,-160.0,0.00024887,3]
[383622908,1757045442067,-25239.4407081,0.00024887,3]
[383622910,1757045442077,-151.0,0.00024887,7]
[383622912,1757045442086,-195.992058,0.00024887,7]
[383622914,1757045442096,-168.0,0.00024891,2]
[383622917,1757045442106,-500.0,0.00024896,2]
[383622919,1757045442115,-500.0,0.00024897,2]
[383622921,1757045442125,-500.0,0.00024897,2]
[383622923,1757045442135,-500.0,0.00024897,2]
[383622925,1757045442144,-500.0,0.00024897,2]
[383622927,1757045442154,-500.0,0.00024897,2]
[383622929,1757045442164,-400.0,0.00024897,2]
[383622931,1757045442174,-400.0,0.00024897,2]
[383622933,1757045442183,-359.11592926,0.00024897,2]
[383622935,1757045442193,-335.03146995,0.00024897,2]
[383622937,1757045442202,-400.0,0.00024897,2]
[383622939,1757045442212,-400.0,0.00024897,2]
[383622941,1757045442222,-284.38825311,0.00024897,2]
[383622943,1757045442231,-400.0,0.00024897,2]
[383622945,1757045442241,-399.4756714,0.00024897,2]
[383622947,1757045442251,-328.56299723,0.00024897,2]
[383622949,1757045442260,-225.21126309,0.00024897,2]
[383622951,1757045442270,-257.27571269,0.00024897,2]
[383622953,1757045442279,-400.0,0.00024897,2]
[383622955,1757045442290,-400.0,0.00024897,2]
[383622957,1757045442299,-405.06870046,0.00024897,2]
[383622959,1757045442308,-406.98293465,0.00024897,2]
[383622961,1757045442318,-400.0,0.00024897,2]
[383622963,1757045442327,-400.0,0.00024897,2]
[383622965,1757045442336,-400.0,0.00024897,2]
[383622967,1757045442346,-400.0,0.00024897,2]
[383622969,1757045442355,-413.65616126,0.00024897,2]
[383622971,1757045442364,-400.0,0.00024897,2]
[383622973,1757045442374,-258.24846324,0.00024897,2]
[383622975,1757045442383,-400.0,0.00024897,2]
[383622977,1757045442393,-400.0,0.00024897,2]
[383622979,1757045442402,-402.67314739,0.00024897,2]
[383622986,1757045442412,-401.89322216,0.00024897,2]
[383622988,1757045442466,-400.0,0.00024897,2]
[383622990,1757045442476,-500.0,0.00024897,2]
[383622992,1757045442486,-400.0,0.00024897,2]
[383622994,1757045442495,-400.0,0.00024897,2]
[383622996,1757045442504,-400.0,0.00024897,2]
[383622998,1757045442513,-400.0,0.00024897,2]
[383623000,1757045442523,-400.0,0.00024897,2]
[383623002,1757045442532,-408.04873933,0.00024897,2]
[383623004,1757045442542,-400.0,0.00024897,2]
[383623006,1757045442556,-481.62147991,0.00024897,2]
[383623008,1757045442565,-298.06455204,0.00024897,2]
[383623010,1757045442575,-624.22012861,0.00024897,2]
[383623013,1757045442585,-411.03889453,0.00024897,2]
[383623014,1757045442594,-405.40962854,0.00024897,2]
[383623017,1757045442604,-544.52836052,0.00024897,2]
[383623018,1757045442613,-400.0,0.00024897,2]
[383623020,1757045442623,-409.24397884,0.00024897,2]
[383623023,1757045442632,-400.0,0.00024897,2]
[383623024,1757045442642,-400.0,0.00024897,2]
[383623026,1757045442652,-400.0,0.00024897,2]
[383623028,1757045442662,-400.0,0.00024897,2]
[383623031,1757045442672,-500.0,0.00024897,2]
[383623033,1757045442682,-400.0,0.00024897,2]
[383623034,1757045442691,-403.47240914,0.00024897,2]
[383623037,1757045442701,-400.0,0.00024897,2]
[383623038,1757045442712,-400.0,0.00024897,2]
[383623041,1757045442721,-400.0,0.00024897,2]
[383623042,1757045442731,-400.0,0.00024897,2]
[383623044,1757045442740,-412.5499774,0.00024897,2]
[383623046,1757045442749,-409.33861806,0.00024897,2]
[383623048,1757045442759,-400.0,0.00024897,2]
[383623050,1757045442768,-405.70201596,0.00024897,2]
[383623052,1757045442778,-400.0,0.00024897,2]
[383623054,1757045442788,-400.0,0.00024897,2]
[383623056,1757045442797,-420.30107985,0.00024897,2]
[383623058,1757045442806,-409.26240763,0.00024897,2]
[383623060,1757045442815,-400.0,0.00024897,2]
[383623062,1757045442825,-400.0,0.00024897,2]
[383623064,1757045442835,-405.47212167,0.00024897,2]
[383623066,1757045442844,-405.78602343,0.00024897,2]
[383623068,1757045442854,-400.0,0.00024897,2]
[383623070,1757045442863,-406.282846,0.00024897,2]
[383623072,1757045442873,-408.1044911,0.00024897,2]
[383623074,1757045442882,-400.0,0.00024897,2]
[383623076,1757045442892,-400.0,0.00024897,2]
[383623078,1757045442902,-400.0,0.00024897,2]
[383623080,1757045442912,-400.0,0.00024897,2]
[383623082,1757045442921,-419.53303514,0.00024897,2]
[383623084,1757045442931,-400.0,0.00024897,2]
[383623086,1757045442941,-400.0,0.00024897,2]
[383623090,1757045442950,-400.0,0.00024897,2]
[383623091,1757045442959,-400.0,0.00024897,2]
[383623093,1757045442969,-400.0,0.00024897,2]
[383623095,1757045442979,-400.0,0.00024897,2]
[383623097,1757045442987,-400.0,0.00024897,2]
[383623099,1757045442997,-400.0,0.00024897,2]
[383623101,1757045443006,-400.0,0.00024897,2]
[383623103,1757045443015,-400.0,0.00024897,2]
[383623105,1757045443025,-400.0,0.00024897,2]
[383623107,1757045443034,-400.0,0.00024897,2]
[383623109,1757045443043,-403.35038279,0.00024897,2]
[383623111,1757045443053,-400.0,0.00024897,2]
[383623114,1757045443063,-400.0,0.00024897,2]
[383623116,1757045443073,-403.95821543,0.00024897,2]
[383623117,1757045443082,-400.0,0.00024897,2]
[383623120,1757045443091,-400.0,0.00024897,2]
[383623121,1757045443101,-503.95616298,0.00024897,2]
[383623123,1757045443110,-400.0,0.00024897,2]
[383623125,1757045443120,-400.0,0.00024897,2]
[383623127,1757045443130,-400.0,0.00024897,2]
[383623129,1757045443142,-400.0,0.00024897,2]
[383623131,1757045443151,-490.72,0.00024897,2]
[383623133,1757045443161,-400.0,0.00024897,2]
[383623135,1757045443170,-400.0,0.00024897,2]
[383623137,1757045443180,-389.71131219,0.00024897,2]
[383623139,1757045443189,-400.0,0.00024897,2]
[383623142,1757045443199,-404.88360817,0.00024897,2]
[383623144,1757045443208,-400.0,0.00024897,2]
[383623146,1757045443217,-400.0,0.00024897,2]
[383623148,1757045443227,-400.0,0.00024897,2]
[383623150,1757045443236,-400.0,0.00024897,2]
[383623152,1757045443246,-400.0,0.00024897,2]
[383623154,1757045443256,-400.0,0.00024897,2]
[383623156,1757045443265,-400.0,0.00024897,2]
[383623158,1757045443275,-400.0,0.00024897,2]
[383623160,1757045443284,-400.0,0.00024897,2]
[383623162,1757045443294,-400.0,0.00024897,2]
[383623164,1757045443304,-403.84604854,0.00024897,2]
[383623166,1757045443313,-400.0,0.00024897,2]
[383623168,1757045443322,-403.84366303,0.00024897,2]
[383623170,1757045443331,-400.0,0.00024897,2]
[383623172,1757045443340,-400.0,0.00024897,2]
[383623174,1757045443350,-400.0,0.00024897,2]
[383623176,1757045443359,-400.0,0.00024897,2]
[383623178,1757045443368,-400.0,0.00024897,2]
[383623180,1757045443378,-400.0,0.00024897,2]
[383623182,1757045443387,-400.0,0.00024897,2]
[383623184,1757045443397,-400.0,0.00024897,2]
[383623186,1757045443406,-400.0,0.00024897,2]
[383623188,1757045443416,-416.02075545,0.00024897,2]
[383623190,1757045443426,-400.0,0.00024897,2]
[383623192,1757045443436,-407.6256768,0.00024897,2]
[383623194,1757045443445,-400.0,0.00024897,2]
[383623196,1757045443455,-400.0,0.00024897,2]
[383623198,1757045443464,-400.0,0.00024897,2]
[383623200,1757045443474,-402.90972056,0.00024897,2]
[383623202,1757045443483,-1135.87,0.00024897,2]
[383623204,1757045443492,-400.0,0.00024897,2]
[383623206,1757045443502,-500.0,0.00024897,2]
[383623208,1757045443511,-409.60597085,0.00024897,2]
[383623210,1757045443521,-400.0,0.00024897,2]
[383623212,1757045443531,-400.0,0.00024897,2]
[383623214,1757045443541,-400.0,0.00024897,2]
[383623216,1757045443555,-553.22,0.00024897,2]
[383623218,1757045443564,-400.0,0.00024897,2]
[383623220,1757045443573,-400.0,0.00024897,2]
[383623222,1757045443582,-405.64735027,0.00024897,2]
[383623224,1757045443594,-403.25591226,0.00024897,2]
[383623227,1757045443605,-406.16573029,0.00024897,2]
[383623229,1757045443617,-400.0,0.00024897,2]
[383623231,1757045443627,-403.83033623,0.00024897,2]
[383623233,1757045443638,-1000.0,0.00024897,2]
[383623234,1757045443647,-400.0,0.00024897,2]
[383623236,1757045443657,-400.0,0.00024897,2]
[383623238,1757045443667,-400.0,0.00024897,2]
[383623240,1757045443676,-407.02994781,0.00024897,2]
[383623242,1757045443685,-402.4715326,0.00024897,2]
[383623244,1757045443694,-400.0,0.00024897,2]
[383623246,1757045443705,-400.0,0.00024897,2]
[383623248,1757045443715,-400.0,0.00024897,2]
[383623250,1757045443726,-400.0,0.00024897,2]
[383623252,1757045443737,-400.0,0.00024897,2]
[383623255,1757045443748,-400.0,0.00024897,2]
[383623257,1757045443759,-402.61594242,0.00024897,2]
[383623258,1757045443768,-425.20472381,0.00024897,2]
[383623260,1757045443777,-400.0,0.00024897,2]
[383623262,1757045443788,-400.0,0.00024897,2]
[383623264,1757045443797,-400.0,0.00024897,2]
[383623266,1757045443809,-401.80355432,0.00024897,2]
[383623268,1757045443820,-400.0,0.00024897,2]
[383623270,1757045443830,-400.0,0.00024897,2]
[383623272,1757045443840,-488.72662862,0.00024897,2]
[383623274,1757045443850,-659.02,0.00024897,2]
[383623276,1757045443860,-401.32291934,0.00024897,2]
[383623278,1757045443869,-400.0,0.00024897,2]
[383623280,1757045443878,-693.59,0.00024897,2]
[383623282,1757045443888,-400.0,0.00024897,2]
[383623283,1757045443898,-402.50508613,0.00024897,2]
[383623284,1757045443907,-402.84314712,0.00024897,2]
[383623285,1757045443916,-400.0,0.00024897,2]
[383623286,1757045443927,-400.0,0.00024897,2]
[383623287,1757045443937,-401.54548526,0.00024897,2]
[383623288,1757045443947,-401.28737873,0.00024897,2]
[383623289,1757045443957,-400.0,0.00024897,2]
[383623290,1757045443967,-400.0,0.00024897,2]
[383623291,1757045443977,-1013.01,0.00024897,2]
[383623293,1757045443988,-400.0,0.00024897,2]
[383623295,1757045443998,-400.0,0.00024897,2]
[383623297,1757045444007,-400.0,0.00024897,2]
[383623299,1757045444017,-400.0,0.00024897,2]
[383623301,1757045444026,-400.49064816,0.00024897,2]
[383623303,1757045444036,-401.68356879,0.00024897,2]
[383623305,1757045444046,-401.76028379,0.00024897,2]
[383623307,1757045444056,-400.0,0.00024897,2]
[383623309,1757045444065,-400.0,0.00024897,2]
[383623311,1757045444075,-400.0,0.00024897,2]
[383623313,1757045444085,-400.0,0.00024897,2]
[383623316,1757045444095,-400.0,0.00024897,2]
[383623318,1757045444105,-400.0,0.00024897,2]
[383623320,1757045444115,-169.10819598,0.00024897,2]
[383623322,1757045444127,-400.0,0.00024897,2]
[383623324,1757045444137,-400.0,0.00024897,2]
[383623326,1757045444146,-401.38927241,0.00024897,2]
[383623328,1757045444157,-400.0,0.00024897,2]
[383623330,1757045444167,-400.0,0.00024897,2]
[383623332,1757045444176,-400.0,0.00024897,2]
[383623334,1757045444185,-402.02246502,0.00024897,2]
[383623336,1757045444195,-400.0,0.00024897,2]
[383623338,1757045444204,-400.0,0.00024897,2]
[383623340,1757045444214,-401.52546348,0.00024897,2]
[383623342,1757045444223,-400.0,0.00024897,2]
[383623344,1757045444233,-400.0,0.00024897,2]
[383623346,1757045444243,-206.98613954,0.00024897,2]
[383623348,1757045444253,-400.0,0.00024897,2]
[383623350,1757045444265,-400.0,0.00024897,2]
[383623352,1757045444275,-401.41860681,0.00024897,2]
[383623354,1757045444286,-401.2803999,0.00024897,2]
[383623356,1757045444296,-400.0,0.00024897,2]
[383623358,1757045444306,-400.0,0.00024897,2]
[383623360,1757045444315,-400.0,0.00024897,2]
[383623362,1757045444326,-400.0,0.00024897,2]
[383623364,1757045444335,-402.41226014,0.00024898,2]
[383623366,1757045444345,-400.0,0.00024898,2]
[383623368,1757045444355,-400.0,0.00024898,2]
[383623371,1757045444366,-400.0,0.00024898,2]
[383623373,1757045444375,-400.0,0.00024898,2]
[383623375,1757045444385,-216.23248228,0.00024898,2]
[383623377,1757045444395,-403.58161782,0.00024898,2]
[383623379,1757045444404,-405.06087985,0.00024898,2]
[383623381,1757045444414,-400.0,0.00024898,2]
[383623383,1757045444424,-400.0,0.00024898,2]
[383623385,1757045444433,-400.0,0.00024898,2]
[383623387,1757045444443,-402.86346352,0.00024898,2]
[383623389,1757045444452,-400.0,0.00024898,2]
[383623391,1757045444462,-400.0,0.00024898,2]
[383623393,1757045444472,-176.97941585,0.00024898,2]
[383623395,1757045444481,-400.0,0.00024898,2]
[383623397,1757045444491,-150.0,0.00024899,2]
[383623399,1757045444500,-2200.0,0.000249,9]
[383623401,1757045444510,-3991.64451442,0.000249,2]
[383623403,1757045444519,-25239.4407081,0.00024901,3]
[383623405,1757045444529,-514.736181,0.00024904,2]
[383623407,1757045444540,-212.63008182,0.00024904,2]
[383623409,1757045444553,-400.0,0.00024908,2]
[383623411,1757045444563,-400.0,0.00024908,2]
[383623413,1757045444573,-400.0,0.00024908,2]
[383623415,1757045444582,-400.0,0.00024908,2]
[383623417,1757045444593,-400.0,0.00024908,2]
[383623419,1757045444603,-400.0,0.00024908,2]
[383623421,1757045444613,-400.0,0.00024908,2]
[383623423,1757045444623,-400.0,0.00024908,2]
[383623425,1757045444633,-411.4186936,0.00024908,2]
[383623427,1757045444643,-400.0,0.00024908,2]
[383623429,1757045444653,-400.0,0.00024908,2]
[383623431,1757045444663,-500.0,0.0002491,2]
[383623433,1757045444674,-160.0,0.00024913,2]
[383623436,1757045444684,-160.0,0.00024913,2]
[383623438,1757045444694,-160.0,0.00024913,2]
[383623440,1757045444708,-500.0,0.0002492,2]
[383623442,1757045444717,-500.0,0.0002492,2]
[383623444,1757045444727,-75718.3221242,0.00024921,3]
[383623446,1757045444737,-151.0,0.00024921,7]
[383623448,1757045444746,-500.0,0.00024929,2]
[383623450,1757045444756,-500.0,0.00024929,2]
[383623452,1757045444766,-500.0,0.00024929,2]
[383623454,1757045444776,-500.0,0.00024929,2]
[383623456,1757045444786,-500.0,0.00024929,2]
[383623458,1757045444795,-670.9787268,0.0002493,2]
[383623460,1757045444806,-500.0,0.0002493,2]
[383623462,1757045444816,-500.0,0.0002493,2]
[383623464,1757045444826,-500.0,0.0002493,2]
[383623466,1757045444835,-500.0,0.0002493,2]
[383623468,1757045444846,-500.0,0.0002493,2]
[383623470,1757045444856,-400.0,0.0002493,2]
[383623472,1757045444866,-400.0,0.0002493,2]
[383623474,1757045444876,-400.0,0.0002493,2]
[383623476,1757045444886,-2614.78,0.0002493,2]
[383623478,1757045444896,-500.0,0.0002493,2]
[383623480,1757045444906,-400.0,0.0002493,2]
[383623482,1757045444916,-400.0,0.0002493,2]
[383623484,1757045444926,-400.0,0.0002493,2]
[383623487,1757045444937,-500.0,0.0002493,2]
[383623489,1757045444946,-400.0,0.00024931,2]
[383623491,1757045444956,-400.0,0.00024931,2]
[383623493,1757045444966,-155.81496319,0.00024931,2]
[383623495,1757045444976,-434.47867263,0.00024931,2]
[383623497,1757045444986,-280.15259939,0.00024931,2]
[383623499,1757045444996,-410.38850018,0.00024931,2]
[383623501,1757045445006,-417.69712368,0.00024931,2]
[383623503,1757045445015,-404.28039096,0.00024931,2]